[Event "28th Bosnjaci Open 2024"]
[Site "Bosnjaci"]
[Date "2024.01.04"]
[Round "2.19"]
[White "Zadravec, Marin"]
[Black "Starcevic, Ante Leon"]
[Result "1/2-1/2"]
[ECO "B31"]
[WhiteElo "1915"]
[BlackElo "2209"]
[Annotator "RC"]
[PlyCount "118"]
[EventDate "2024.01.02"]
[EventType "swiss"]
[EventCountry "CRO"]
[SourceTitle "playchess.com"]
[Source "ChessBase"]
[SourceQuality "1"]
[TimeControl "5400+30"]

1. e4 {[%emt 0:00:03]} c5 {[%emt 0:03:13]} 2. Nf3 {[%emt 0:00:25]} Nc6 {[%emt 0:03:45]} 3. Bb5 {[%emt 0:00:49]} g6 {[%emt 0:00:06]} 4. Bxc6 {[%emt 0:00:09]} dxc6 {[%emt 0:00:06]} 5. d3 {[%emt 0:00:44]} Bg7 {[%emt 0:00:06]} 6. Nc3 {[%emt 0:00:32]} Nf6 {[%emt 0:00:24]} 7. h3 {[%emt 0:00:24]} b6 {[%emt 0:01:53]} 8. Be3 {[%emt 0:00:58]} O-O {[%emt 0:00:09]} 9. Qd2 {[%emt 0:00:03]} e5 {[%emt 0:00:31]} 10. Bh6 {[%emt 0:00:46]} Qe7 {[%emt 0:00:43]} 11. Bxg7 {[%emt 0:02:22]} Kxg7 {[%emt 0:00:06]} 12. O-O {[%emt 0:00:04]} Bd7 {[%emt 0:05:57]} 13. Qe3 {[%emt 0:02:05]} Nh5 {[%emt 0:05:32]} 14. Ne2 {[%emt 0:02:56]} Rae8 {[%emt 0:02:04]} 15. Nd2 {[%emt 0:02:57]} Qf6 {[%emt 0:02:49]} 16. Rab1 {[%emt 0:03:06]} Nf4 {[%emt 0:00:50]} 17. Nxf4 {[%emt 0:05:42]} exf4 {[%emt 0:01:18]} 18. Qe1 {[%emt 0:05:37]} f3 {[%emt 0:09:13]} 19. Nxf3 {[%emt 0:05:56]} Bxh3 {[%emt 0:00:17]} 20. Qc3 {[%emt 0:00:20]} Bg4 {[%emt 0:04:50]} 21. Qxf6+ {[%emt 0:03:01]} Kxf6 {[%emt 0:00:07]} 22. Nd2 {[%emt 0:00:57]} Be6 {[%emt 0:03:36]} 23. a3 {[%emt 0:05:17]} Rd8 {[%emt 0:02:41]} 24. Rfd1 {[%emt 0:02:08]} a5 {[%emt 0:01:33]} 25. f3 {[%emt 0:05:55]} Rd4 {[%emt 0:04:21]} 26. Kf2 {[%emt 0:01:19]} Rfd8 {[%emt 0:00:15]} 27. Ke2 {[%emt 0:02:42]} h5 {[%emt 0:00:59]} 28. Nf1 {[%emt 0:03:44]} b5 {[%emt 0:08:21]} 29. Ne3 {[%emt 0:03:12]} g5 {[%emt 0:03:25]} 30. g3 {[%emt 0:07:02]} c4 {[%emt 0:09:15]} 31. Rd2 {[%emt 0:10:03]} Ke5 {[%emt 0:04:35]} 32. Rh1 {[%emt 0:01:54]} Rh8 {[%emt 0:00:20]} 33. dxc4 {[%emt 0:01:46]} Rxd2+ {[%emt 0:00:12]} 34. Kxd2 {[%emt 0:00:01]} h4 {[%emt 0:01:52]} 35. cxb5 {[%emt 0:03:32]} cxb5 {[%emt 0:00:04]} 36. Nf1 {[%emt 0:02:02]} f5 {[%emt 0:06:14]} 37. gxh4 {[%emt 0:04:44]} gxh4 {[%emt 0:00:17]} 38. Ke3 {[%emt 0:00:33]} f4+ {[%emt 0:00:07]} 39. Kf2 {[%emt 0:01:01]} h3 {[%emt 0:00:05]} 40. Nd2 {[%emt 0:01:29]} Kd4 {[%emt 0:05:33]} 41. Ke2 {[%emt 0:05:55]} b4 {[%emt 0:01:42]} 42. Nb3+ {[%emt 0:01:19]} Ke5 {[%emt 0:06:22]} 43. Nxa5 {[%emt 0:01:07]} Rc8 {[%emt 0:00:06]} 44. Kd2 {[%emt 0:00:55]} Rd8+ {[%emt 0:01:02]} 45. Ke2 {[%emt 0:00:04]} Rc8 {[%emt 0:00:08]} 46. Kd2 {[%emt 0:00:05]} bxa3 {[%emt 0:01:21]} 47. bxa3 {[%emt 0:00:01]} Rg8 {[%emt 0:00:13]} 48. Nc6+ {[%emt 0:01:09]} Kd6 {[%emt 0:00:22]} 49. Nd4 {[%emt 0:00:18]} Rg2+ {[%emt 0:00:03]} 50. Kc3 {[%emt 0:00:08]} Bd7 {[%emt 0:00:37]} 51. Nf5+ {[%emt 0:00:24]} Bxf5 {[%emt 0:00:09]} 52. exf5 {[%emt 0:00:04]} Rg3 {[%emt 0:00:18]} 53. Kd4 {[%emt 0:00:27]} Rxf3 {[%emt 0:00:06]} 54. Ke4 {[%emt 0:00:13]} Rxa3 {[%emt 0:00:14]} 55. Kxf4 {[%emt 0:00:21]} Ke7 {[%emt 0:00:57]} 56. Ke5 {[%emt 0:03:13]} Ra5+ {[%emt 0:00:40]} 57. Ke4 {[%emt 0:00:50]} Ra3 {[%emt 0:00:57]} 58. Kd4 {[%emt 0:01:04]} Kf6 {[%emt 0:00:23]} 59. c3 {[%emt 0:00:13]} Ra4+ {[%emt 0:00:06]} 1/2-1/2

[Event "28th Bosnjaci Open 2024"]
[Site "Bosnjaci"]
[Date "2024.01.04"]
[Round "2.20"]
[White "Ljikar, Zoran"]
[Black "Pusara, Mihailo"]
[Result "1-0"]
[ECO "A36"]
[WhiteElo "2200"]
[BlackElo "1928"]
[Annotator "RC"]
[PlyCount "71"]
[EventDate "2024.01.02"]
[EventType "swiss"]
[EventCountry "CRO"]
[SourceTitle "playchess.com"]
[Source "ChessBase"]
[SourceQuality "1"]
[TimeControl "5400+30"]

1. e4 {[%emt 0:01:15]} c5 {[%emt 0:00:15]} 2. c4 {[%emt 0:00:57]} Nc6 {[%emt 0:01:25]} 3. Nc3 {[%emt 0:00:07]} g6 {[%emt 0:01:42]} 4. g3 {[%emt 0:00:06]} Bg7 {[%emt 1:29:08]} 5. Bg2 {[%emt 0:00:06]} e6 {[%emt 0:00:00]} 6. Nge2 {[%emt 0:00:07]} a6 {[%emt 0:00:00]} 7. O-O {[%emt 0:00:51]} Nge7 {[%emt 0:00:00]} 8. d3 {[%emt 0:00:11]} O-O {[%emt 0:00:00]} 9. a3 {[%emt 0:00:09]} Rb8 {[%emt 0:02:30]} 10. Rb1 {[%emt 0:11:10]} b5 11. Be3 {[%emt 1:21:01]} Nd4 {[%emt 0:00:00]} 12. b4 {[%emt 0:00:00]} Nxe2+ {[%emt 0:00:00]} 13. Nxe2 {[%emt 0:00:00]} cxb4 {[%emt 0:00:00]} 14. axb4 {[%emt 0:00:00]} Nc6 {[%emt 0:00:00]} 15. c5 {[%emt 0:00:00]} Re8 {[%emt 0:00:00]} 16. d4 {[%emt 0:00:00]} d5 {[%emt 0:00:00]} 17. Nc3 {[%emt 0:00:00]} e5 {[%emt 0:00:00]} 18. exd5 {[%emt 0:00:00]} Nxd4 {[%emt 0:00:00]} 19. d6 {[%emt 0:00:00]} Bf5 {[%emt 0:00:00]} 20. Rb2 {[%emt 0:00:00]} Be6 {[%emt 0:00:00]} 21. Nd5 {[%emt 0:00:00]} Bxd5 {[%emt 0:00:00]} 22. Bxd5 {[%emt 0:00:00]} Qd7 {[%emt 0:00:00]} 23. Bxd4 {[%emt 0:00:00]} exd4 {[%emt 0:00:00]} 24. Ra2 {[%emt 0:00:00]} Qa7 {[%emt 0:00:00]} 25. c6 {[%emt 0:00:00]} Rbd8 {[%emt 0:00:00]} 26. d7 {[%emt 0:00:00]} Re5 {[%emt 0:00:00]} 27. Qf3 {[%emt 0:00:00]} Rf5 {[%emt 0:00:15]} 28. Qb3 {[%emt 0:00:00]} Qb6 {[%emt 0:01:43]} 29. Kg2 {[%emt 0:00:00]} Bf8 {[%emt 0:03:48]} 30. f4 {[%emt 0:00:00]} Rf6 {[%emt 0:01:26]} 31. Rc1 {[%emt 0:00:00]} Bd6 {[%emt 0:00:57]} 32. Qa3 {[%emt 0:00:00]} d3 {[%emt 0:01:24]} 33. Qc3 {[%emt 0:00:00]} Rf5 {[%emt 0:01:41]} 34. Be4 {[%emt 0:00:00]} Bc7 {[%emt 0:00:42]} 35. Bxf5 {[%emt 0:00:00]} gxf5 {[%emt 0:00:05]} 36. Qxd3 {[%emt 0:00:00]} 1-0

[Event "28th Bosnjaci Open 2024"]
[Site "Bosnjaci"]
[Date "2024.01.04"]
[Round "3.1"]
[White "Saric, Ante"]
[Black "Ljikar, Zoran"]
[Result "1-0"]
[ECO "B44"]
[WhiteElo "2508"]
[BlackElo "2200"]
[Annotator "TA"]
[PlyCount "77"]
[EventDate "2024.01.02"]
[EventType "swiss"]
[EventCountry "CRO"]
[SourceTitle "playchess.com"]
[Source "ChessBase"]
[SourceQuality "1"]
[TimeControl "5400+30"]

{[%evp 16,77,14,10,39,12,6,16,0,4,25,27,22,24,15,12,18,8,10,0,28,26,53,54,40,59,97,96,108,105,107,95,100,96,107,107,142,83,83,89,118,114,166,84,85,52,150,75,125,120,242,233,222,214,602,533,1001,954,1929,1863,29984,29984,29982,4918]} 1. Nf3 {[%emt 0:00:04]} c5 {[%emt 0:00:33]} 2. c4 {[%emt 0:00:15]} Nc6 {[%emt 0:00:18]} 3. d4 {[%emt 0:00:17]} cxd4 {[%emt 0:00:17]} 4. Nxd4 {[%emt 0:00:08]} e6 {[%emt 0:00:41]} 5. Nc3 {[%emt 0:02:33]} Nf6 {[%emt 0:04:09]} 6. e4 {[%emt 0:01:44]} Bb4 {[%emt 0:00:55]} 7. Nxc6 {[%emt 0:00:08]} bxc6 {[%emt 0:00:22]} 8. Bd3 {[%emt 0:00:06]} e5 {[%emt 0:00:32]} 9. O-O {[%emt 0:00:20]} Bc5 {[%emt 0:02:05] B44: Sicilian: Taimanov: 5 Nb5.} 10. h3 {[%emt 0:01:40] 10.Re1 is setting a new trend.} O-O {[%emt 0:00:31]} 11. Re1 {[%emt 0:01:02]} d6 {[%emt 0:00:34] The position is equal.} 12. Be3 {[%emt 0:00:50]} Bd4 {[%emt 0:06:50]} 13. Bxd4 {[%emt 0:05:44]} exd4 {[%emt 0:00:24]} 14. Na4 {[%emt 0:02:04]} Nd7 {[%emt 0:00:43] [#]} 15. c5 $1 {[%emt 0:00:06]} Nxc5 {[%emt 0:04:11]} 16. Nxc5 {[%emt 0:01:11]} dxc5 {[%emt 0:00:01] [#]} 17. Qc2 $146 {[%emt 0:14:06]} ({Predecessor:} 17. Qh5 Qb6 18. b3 a5 19. Rac1 a4 20. Qxc5 Qxc5 21. Rxc5 axb3 22. axb3 Be6 23. Bc4 Bxc4 24. Rxc4 {½-½ Artemiev,V (2698)-Alekseev,E (2573) Julius Baer Rapid Div 2 W 2023 (1.1)}) 17... Be6 {[%emt 0:05:37]} 18. Rec1 {[%emt 0:20:21]} Qb6 {[%emt 0:07:17]} 19. b3 {[%emt 0:01:06]} ({But not} 19. Qxc5 Qxb2 20. Rcb1 Qd2 $11) 19... c4 {[%emt 0:09:10]} 20. Bxc4 {[%emt 0:00:12]} c5 {[%emt 0:00:06]} 21. Bxe6 $1 {[%emt 0:13:25]} Qxe6 {[%emt 0:00:11]} 22. Qxc5 {[%emt 0:00:23]} Qxe4 {[%emt 0:00:08]} 23. Re1 {[%emt 0:07:42]} Qf4 {[%emt 0:00:51]} 24. Rad1 {[%emt 0:01:02]} Rfd8 {[%emt 0:01:06]} 25. Rd3 {[%emt 0:02:17]} g6 {[%emt 0:04:36] [#]} 26. Red1 {[%emt 0:02:25] White is much more active.} (26. Rf3 $142 $1 {[%cal Rf3f4]} Qh6 27. Rd1) 26... Rac8 $16 {[%emt 0:00:23]} 27. Qxa7 {[%emt 0:02:29][%cal Rd3d4]} Rc1 {[%emt 0:02:29]} 28. Qa5 {[%emt 0:07:28]} (28. Qe7 {simplifies} Rxd1+ 29. Rxd1 Rc8 30. Qe1) 28... Rd6 {[%emt 0:11:43]} (28... Rdc8 $16) 29. Qa8+ {[%emt 0:03:14]} (29. Qd2 $18 Rxd1+ 30. Qxd1) 29... Kg7 {[%emt 0:00:08]} 30. Qf3 {[%emt 0:01:48] Repels Rdc6} (30. Qa4 {looks sharper.} Rc2 31. Rf3 Qe5 32. Qa7) 30... Rxd1+ {[%emt 0:00:36]} (30... Qxf3 $14 31. gxf3 Rxd1+ 32. Rxd1 Kf6) 31. Rxd1 $14 {[%emt 0:02:04][%mdl 4096] Endgame KQR-KQR} (31. Qxd1 $142 Rd5 32. a4) 31... Qe5 {[%emt 0:09:38]} ({Black should try} 31... Qxf3 32. gxf3 Kf6) 32. Qd3 $16 {[%emt 0:01:00]} h5 {[%emt 0:00:38] [#] This move loses the game for Black.} (32... Qa5 $16) 33. b4 $1 $18 {[%emt 0:01:16]} h4 {[%emt 0:10:24]} 34. a4 {[%emt 0:00:57][%cal Ba2a4,Ba4a5,Ba5a6,Ba6a7][%mdl 32]} f5 $2 {[%emt 0:00:26]} (34... Qd5 35. Ra1 Qc6) 35. a5 {[%emt 0:00:37]} g5 {[%emt 0:00:23]} 36. a6 {[%emt 0:01:14]} Kf6 {[%emt 0:04:33]} 37. a7 {[%emt 0:00:37]} Qe8 {[%emt 0:00:07]} 38. Ra1 {[%emt 0:00:42]} Qa8 {[%emt 0:00:44]} 39. Qf3 {[%emt 0:00:59] Weighted Error Value: White=0.15 (very precise) /Black=0.53} (39. Ra5 $142 Kg7 40. Qxf5 Rf6 41. Qe5 Kg6 42. Qxg5+ Kf7 43. Qh5+ Ke7 44. Qe5+ Kf7 45. Qh5+ Ke7 46. Qxh4) 1-0

[Event "28th Bosnjaci Open 2024"]
[Site "Bosnjaci"]
[Date "2024.01.04"]
[Round "3.2"]
[White "Sipic, Hrvoje"]
[Black "Zaja, Ivan"]
[Result "1/2-1/2"]
[ECO "C77"]
[WhiteElo "2185"]
[BlackElo "2419"]
[Annotator "RC"]
[PlyCount "138"]
[EventDate "2024.01.02"]
[EventType "swiss"]
[EventCountry "CRO"]
[SourceTitle "playchess.com"]
[Source "ChessBase"]
[SourceQuality "1"]
[TimeControl "5400+30"]

1. e4 {[%emt 0:00:14]} e5 {[%emt 0:01:25]} 2. Nf3 {[%emt 0:00:06]} Nc6 {[%emt 0:00:05]} 3. Bb5 {[%emt 0:00:20]} a6 {[%emt 0:00:09]} 4. Ba4 {[%emt 0:00:03]} Nf6 {[%emt 0:00:06]} 5. d3 {[%emt 0:00:28]} b5 {[%emt 0:01:31]} 6. Bb3 {[%emt 0:00:06]} Bc5 {[%emt 0:00:10]} 7. a4 {[%emt 0:02:24]} Rb8 {[%emt 0:03:39]} 8. O-O {[%emt 0:00:54]} O-O {[%emt 0:03:29]} 9. axb5 {[%emt 0:02:35]} axb5 {[%emt 0:00:17]} 10. Bg5 {[%emt 0:01:15]} h6 {[%emt 0:02:27]} 11. Bh4 {[%emt 0:01:09]} Be7 {[%emt 0:01:14]} 12. Nc3 {[%emt 0:04:06]} d6 {[%emt 0:00:30]} 13. h3 {[%emt 0:02:05]} g5 {[%emt 0:06:06]} 14. Nxg5 {[%emt 0:08:48]} hxg5 {[%emt 0:00:30]} 15. Bxg5 {[%emt 0:00:07]} Nd4 {[%emt 0:13:38]} 16. f4 {[%emt 0:08:52]} Nxb3 {[%emt 0:00:46]} 17. cxb3 {[%emt 1:05:28]} b4 {[%emt 0:07:48]} 18. Ne2 {[%emt 0:00:00]} Nh7 {[%emt 0:04:48]} 19. Bh6 {[%emt 0:00:00]} Re8 {[%emt 0:00:30]} 20. Qd2 {[%emt 0:00:00]} d5 {[%emt 0:16:21]} 21. Rf3 {[%emt 0:00:00]} Rb6 {[%emt 0:00:37]} 22. f5 {[%emt 0:00:00]} Bf8 {[%emt 0:02:35]} 23. Be3 {[%emt 0:00:00]} Ra6 {[%emt 0:05:58]} 24. Rxa6 {[%emt 0:00:00]} Bxa6 {[%emt 0:00:02]} 25. Rg3+ {[%emt 0:00:00]} Kh8 {[%emt 0:00:36]} 26. exd5 {[%emt 0:00:00]} Bb7 {[%emt 0:07:26]} 27. Bg5 {[%emt 0:00:00]} f6 {[%emt 0:08:01]} 28. Bh6 {[%emt 0:00:00]} Bxh6 {[%emt 0:00:39]} 29. Qxh6 {[%emt 0:00:00]} Rg8 {[%emt 0:00:26]} 30. Rg6 {[%emt 0:00:00]} Qxd5 {[%emt 0:00:56]} 31. d4 {[%emt 0:00:00]} exd4 {[%emt 0:06:44]} 32. Rxg8+ {[%emt 0:02:04]} Kxg8 {[%emt 0:02:38]} 33. Qg6+ {[%emt 0:00:29]} Kf8 {[%emt 0:00:19]} 34. Nf4 {[%emt 0:00:47]} Qf7 {[%emt 0:01:00]} 35. Ne6+ {[%emt 0:00:13]} Ke7 {[%emt 0:00:28]} 36. Qxf7+ {[%emt 0:01:50]} Kxf7 {[%emt 0:00:00]} 37. Nd8+ {[%emt 0:00:08]} Ke7 {[%emt 0:00:01]} 38. Nxb7 {[%emt 0:00:13]} Ng5 {[%emt 0:00:07]} 39. Nc5 {[%emt 0:01:35]} Kd6 {[%emt 0:00:31]} 40. Nd3 {[%emt 0:04:11]} c5 {[%emt 0:00:25]} 41. Kf2 {[%emt 0:00:00]} Ne4+ {[%emt 0:00:20]} 42. Kf3 {[%emt 0:00:00]} Nd2+ {[%emt 0:00:25]} 43. Kf4 {[%emt 0:00:00]} Nxb3 {[%emt 0:00:07]} 44. h4 {[%emt 0:00:00]} c4 {[%emt 0:04:31]} 45. Nxb4 {[%emt 0:00:00]} d3 {[%emt 0:00:18]} 46. Ke3 {[%emt 0:00:17]} Ke5 {[%emt 0:01:30]} 47. g4 {[%emt 0:00:47]} d2 {[%emt 0:00:21]} 48. Ke2 {[%emt 0:00:27]} Kf4 {[%emt 0:00:10]} 49. h5 {[%emt 0:01:36]} Kg5 {[%emt 0:01:10]} 50. Nd5 {[%emt 0:00:22]} Nc5 {[%emt 0:01:02]} 51. Kxd2 {[%emt 0:00:52]} Kxg4 {[%emt 0:00:03]} 52. h6 {[%emt 0:00:51]} Ne4+ {[%emt 0:00:08]} 53. Kc2 {[%emt 0:00:08]} Ng5 {[%emt 0:00:15]} 54. Nxf6+ {[%emt 0:00:11]} Kxf5 {[%emt 0:00:02]} 55. h7 {[%emt 0:00:51]} Nf7 {[%emt 0:00:02]} 56. Nd5 {[%emt 0:00:29]} Kg6 {[%emt 0:00:22]} 57. Kc3 {[%emt 0:00:13]} Kxh7 {[%emt 0:00:05]} 58. Kxc4 {[%emt 0:00:02]} Kg7 {[%emt 0:00:35]} 59. Kc5 {[%emt 0:00:29]} Ne5 {[%emt 0:00:26]} 60. Nf4 {[%emt 0:00:19]} Kf7 {[%emt 0:00:21]} 61. Kd5 {[%emt 0:00:19]} Nd7 {[%emt 0:01:58]} 62. Kc6 {[%emt 0:00:25]} Ne5+ {[%emt 0:01:03]} 63. Kd5 {[%emt 0:00:45]} Nd7 {[%emt 0:00:08]} 64. b4 {[%emt 0:00:07]} Ke7 {[%emt 0:00:18]} 65. Ne6 {[%emt 0:00:41]} Nf6+ {[%emt 0:00:34]} 66. Ke5 {[%emt 0:00:23]} Ng4+ {[%emt 0:00:12]} 67. Kf4 {[%emt 0:00:22]} Kxe6 {[%emt 0:00:07]} 68. Kxg4 {[%emt 0:00:04]} Kd5 {[%emt 0:00:03]} 69. Kf4 {[%emt 0:00:10]} Kc4 {[%emt 0:00:03]} 1/2-1/2

[Event "28th Bosnjaci Open 2024"]
[Site "Bosnjaci"]
[Date "2024.01.04"]
[Round "3.3"]
[White "Fercec, Nenad"]
[Black "Nomindalai Tumurbaatar"]
[Result "1-0"]
[ECO "B51"]
[WhiteElo "2410"]
[BlackElo "2166"]
[Annotator "RC"]
[PlyCount "103"]
[EventDate "2024.01.02"]
[EventType "swiss"]
[EventCountry "CRO"]
[SourceTitle "playchess.com"]
[Source "ChessBase"]
[SourceQuality "1"]
[TimeControl "5400+30"]

1. e4 {[%emt 0:00:22]} c5 {[%emt 0:00:17]} 2. Nf3 {[%emt 0:00:09]} d6 {[%emt 0:00:11]} 3. Bb5+ {[%emt 0:00:43]} Nd7 {[%emt 0:02:18]} 4. c3 {[%emt 0:00:31]} Ngf6 {[%emt 0:03:21]} 5. Qe2 {[%emt 0:00:16]} a6 {[%emt 0:04:55]} 6. Ba4 {[%emt 0:00:08]} Qc7 {[%emt 0:09:43]} 7. Bc2 {[%emt 0:01:36]} g6 {[%emt 0:08:19]} 8. d4 {[%emt 0:03:08]} Bg7 {[%emt 0:13:12]} 9. O-O {[%emt 0:00:58]} e5 {[%emt 0:02:49]} 10. dxe5 {[%emt 0:01:15]} Nxe5 {[%emt 0:01:40]} 11. Nxe5 {[%emt 0:00:58]} dxe5 {[%emt 0:00:02]} 12. c4 {[%emt 0:00:13]} O-O {[%emt 0:03:36]} 13. Nc3 {[%emt 0:00:18]} Re8 {[%emt 0:00:05]} 14. Ba4 {[%emt 0:01:22]} Re6 {[%emt 0:12:11]} 15. Rd1 {[%emt 0:07:48]} h6 {[%emt 0:07:25]} 16. Be3 {[%emt 0:01:04]} Rd6 {[%emt 0:10:02]} 17. Rxd6 {[%emt 0:01:56]} Qxd6 {[%emt 0:00:02]} 18. Rd1 {[%emt 0:00:26]} Qf8 {[%emt 0:00:10]} 19. f3 {[%emt 0:03:25]} Be6 {[%emt 0:00:10]} 20. Qf2 {[%emt 0:07:07]} Rc8 {[%emt 0:04:05]} 21. b3 {[%emt 0:05:19]} h5 {[%emt 0:01:51]} 22. Qd2 {[%emt 0:02:51]} Kh7 {[%emt 0:00:15]} 23. h4 {[%emt 0:01:03]} Rb8 {[%emt 0:02:33]} 24. Bg5 {[%emt 0:01:53]} Bh6 {[%emt 0:00:35]} 25. Qd6 {[%emt 0:00:52]} Qxd6 {[%emt 0:03:49]} 26. Rxd6 {[%emt 0:00:30]} Ng8 {[%emt 0:00:39]} 27. Kf2 {[%emt 0:07:13]} Bxg5 {[%emt 0:03:33]} 28. hxg5 {[%emt 0:00:18]} Kg7 {[%emt 0:00:02]} 29. g3 {[%emt 0:02:32]} Kf8 {[%emt 0:00:25]} 30. f4 {[%emt 0:00:25]} exf4 {[%emt 0:01:08]} 31. gxf4 {[%emt 0:00:15]} Ke7 {[%emt 0:02:22]} 32. e5 {[%emt 0:00:50]} h4 {[%emt 0:01:26]} 33. Rb6 {[%emt 0:01:16]} Kd8 {[%emt 0:00:46]} 34. Ne4 {[%emt 0:01:45]} Kc7 {[%emt 0:03:33]} 35. Rd6 {[%emt 0:00:07]} b5 {[%emt 0:00:00]} 36. Nxc5 {[%emt 0:00:04]} Rb6 {[%emt 0:00:08]} 37. Nxa6+ {[%emt 0:01:15]} Rxa6 {[%emt 0:00:01]} 38. Rxa6 {[%emt 0:00:09]} bxa4 {[%emt 0:00:02]} 39. Rxa4 {[%emt 0:00:26]} Kb7 {[%emt 0:00:22]} 40. Rb4+ {[%emt 0:00:22]} Ka7 {[%emt 0:00:07]} 41. f5 {[%emt 0:02:57]} Bxf5 {[%emt 0:00:08]} 42. c5 {[%emt 0:00:04]} h3 {[%emt 0:01:04]} 43. c6 {[%emt 0:00:12]} Bc8 {[%emt 0:00:30]} 44. e6 {[%emt 0:06:53]} fxe6 {[%emt 0:02:04]} 45. Rf4 {[%emt 0:04:32]} Kb8 {[%emt 0:00:32]} 46. Rf7 {[%emt 0:01:26]} e5 {[%emt 0:00:08]} 47. Rg7 {[%emt 0:00:17]} Be6 {[%emt 0:00:51]} 48. Kg3 {[%emt 0:00:09]} Bd5 {[%emt 0:00:24]} 49. Kxh3 {[%emt 0:02:09]} e4 {[%emt 0:00:19]} 50. Kg3 {[%emt 0:00:58]} Kc8 {[%emt 0:00:11]} 51. Kf4 {[%emt 0:00:21]} Kd8 {[%emt 0:00:16]} 52. Rd7+ {[%emt 0:00:05]} 1-0

[Event "28th Bosnjaci Open 2024"]
[Site "Bosnjaci"]
[Date "2024.01.04"]
[Round "3.4"]
[White "Bosnjak, Nino"]
[Black "Kovacevic, Blazimir"]
[Result "0-1"]
[ECO "A92"]
[WhiteElo "2162"]
[BlackElo "2381"]
[Annotator "RC"]
[PlyCount "48"]
[EventDate "2024.01.02"]
[EventType "swiss"]
[EventCountry "CRO"]
[SourceTitle "playchess.com"]
[Source "ChessBase"]
[SourceQuality "1"]
[TimeControl "5400+30"]

1. d4 {[%emt 0:00:19]} e6 {[%emt 0:00:24]} 2. Nf3 {[%emt 0:01:05]} f5 {[%emt 0:00:35]} 3. g3 {[%emt 0:00:33]} Nf6 {[%emt 0:00:25]} 4. Bg2 {[%emt 0:00:19]} Be7 {[%emt 0:00:16]} 5. O-O {[%emt 0:00:54]} d5 {[%emt 0:01:04]} 6. c4 {[%emt 0:01:31]} Ne4 {[%emt 0:00:15]} 7. Nc3 {[%emt 0:03:13]} c6 {[%emt 0:00:12]} 8. Qb3 {[%emt 0:08:58]} Nd7 {[%emt 0:03:57]} 9. cxd5 {[%emt 0:00:36]} exd5 {[%emt 0:00:37]} 10. h4 {[%emt 0:06:11]} Bd6 {[%emt 0:05:06]} 11. Ng5 {[%emt 0:05:10]} Ndf6 {[%emt 0:06:24]} 12. Rd1 {[%emt 0:11:28]} Qe7 {[%emt 0:05:04]} 13. Nh3 {[%emt 0:05:56]} Nh5 {[%emt 0:10:11]} 14. Bf3 {[%emt 0:07:19]} Nef6 {[%emt 0:02:52]} 15. Bg5 {[%emt 0:03:55]} Qf7 {[%emt 0:00:30]} 16. e3 {[%emt 0:06:15]} h6 {[%emt 0:03:55]} 17. Bxf6 {[%emt 0:00:24]} Nxf6 {[%emt 0:00:14]} 18. Qc2 {[%emt 0:07:00]} g5 {[%emt 0:04:16]} 19. hxg5 {[%emt 0:02:15]} hxg5 {[%emt 0:00:06]} 20. Bg2 {[%emt 0:00:08]} Qg7 {[%emt 0:05:26]} 21. Re1 {[%emt 0:04:57]} Kf8 {[%emt 0:03:03]} 22. f4 {[%emt 0:01:36]} gxf4 {[%emt 0:01:27]} 23. Nxf4 {[%emt 0:00:43]} Qxg3 {[%emt 0:01:00]} 24. Qf2 {[%emt 0:00:19]} Rh1+ {[%emt 0:01:06]} 0-1

[Event "28th Bosnjaci Open 2024"]
[Site "Bosnjaci"]
[Date "2024.01.04"]
[Round "3.5"]
[White "Vukovic, Nikola"]
[Black "Muratovic, Efim"]
[Result "0-1"]
[ECO "D37"]
[WhiteElo "2152"]
[BlackElo "2345"]
[Annotator "RC"]
[PlyCount "76"]
[EventDate "2024.01.02"]
[EventType "swiss"]
[EventCountry "CRO"]
[SourceTitle "playchess.com"]
[Source "ChessBase"]
[SourceQuality "1"]
[TimeControl "5400+30"]

1. d4 {[%emt 0:00:06]} Nf6 {[%emt 0:00:54]} 2. Nf3 {[%emt 0:01:18]} e6 {[%emt 0:00:47]} 3. c4 {[%emt 0:02:13]} Bb4+ {[%emt 0:01:05]} 4. Bd2 {[%emt 0:02:22]} Be7 {[%emt 0:03:21]} 5. Nc3 {[%emt 0:05:36]} d5 {[%emt 0:00:45]} 6. Bf4 {[%emt 0:01:59]} O-O {[%emt 0:02:17]} 7. e3 {[%emt 0:00:53]} a6 {[%emt 0:07:49]} 8. c5 {[%emt 1:20:03]} Nh5 {[%emt 0:06:16]} 9. Bd3 {[%emt 0:00:00]} Nxf4 {[%emt 0:02:52]} 10. exf4 {[%emt 0:00:00]} b6 {[%emt 0:03:26]} 11. b4 {[%emt 0:00:00]} Nc6 {[%emt 0:02:56]} 12. a3 {[%emt 0:00:00]} Bf6 {[%emt 0:02:18]} 13. Ne2 {[%emt 0:00:00]} Bd7 {[%emt 0:06:55]} 14. O-O {[%emt 0:00:00]} Ne7 {[%emt 0:04:10]} 15. Qc2 {[%emt 0:00:00]} g6 {[%emt 0:00:07]} 16. Rac1 {[%emt 0:00:00]} Qe8 {[%emt 0:09:23]} 17. Rfe1 {[%emt 0:00:00]} a5 {[%emt 0:02:14]} 18. Nc3 {[%emt 0:00:00]} axb4 {[%emt 0:00:43]} 19. axb4 {[%emt 0:00:00]} Ra7 {[%emt 0:04:16]} 20. b5 {[%emt 0:00:00]} bxc5 {[%emt 0:03:34]} 21. dxc5 {[%emt 0:00:00]} Bxc3 {[%emt 0:01:33]} 22. Qxc3 {[%emt 0:00:00]} Bxb5 {[%emt 0:00:41]} 23. Bxb5 {[%emt 0:00:00]} Qxb5 {[%emt 0:00:07]} 24. Nd4 {[%emt 0:00:00]} Qa5 {[%emt 0:01:20]} 25. Qe3 {[%emt 0:00:00]} Qb4 {[%emt 0:02:37]} 26. Qe5 {[%emt 0:00:41]} c6 {[%emt 0:09:37]} 27. g3 {[%emt 0:06:38]} Ra2 {[%emt 0:02:53]} 28. Qf6 {[%emt 0:01:19]} Qd2 {[%emt 0:05:15]} 29. Rf1 {[%emt 0:00:21]} Re8 {[%emt 0:00:48]} 30. f5 {[%emt 0:01:12]} gxf5 {[%emt 0:04:33]} 31. Rcd1 {[%emt 0:00:05]} Qa5 {[%emt 0:02:19]} 32. Qg5+ {[%emt 0:01:06]} Ng6 {[%emt 0:00:14]} 33. h4 {[%emt 0:00:13]} Qd8 {[%emt 0:00:44]} 34. Qh6 {[%emt 0:00:37]} Ne5 {[%emt 0:01:14]} 35. Rde1 {[%emt 0:00:45]} Ng4 {[%emt 0:01:07]} 36. Qh5 {[%emt 0:00:16]} Ra4 {[%emt 0:01:25]} 37. Nxc6 {[%emt 0:00:36]} Qc7 {[%emt 0:00:46]} 38. Qg5+ {[%emt 0:00:34]} Kf8 {[%emt 0:00:14]} 0-1